Cogmind - Beta 11.1 @@@ ROGUE MODE // 2022.05.04 @ 13:30:04 Player: ktur Result: Self-destructed Performance ------------- Evolutions (6) 3000 Regions Visited (20) 4000 Robots Destroyed (221) 1105 Value Destroyed (7598) 7598 Prototype IDs (36) 720 Alien Tech Used (0) 0 Bonus (2527) 2527 TOTAL SCORE: 18950 Bonus ------- High Alert Combat Kills 127 Follower Combat Kills 97 Met Data Miner 300 Met Warlord at Base 500 MAIN.C Attacked Warlord 500 Warlord Defense Kill 1018 Friendly Fire -15 Cogmind --------- Core Integrity 1111/1150 Matter 152/300 Energy 1/100 System Corruption 0% Temperature Cool (87) Movement Core (650) Ox12 Location -4/Factory Parts ------- > --- POWER (1) -------- (None) > --- PROPULSION (4) --- Combat Gravmag System Combat Gravmag System Combat Gravmag System Combat Gravmag System > --- UTILITY (10) ----- Large Storage Unit Enhanced Optical Array Advanced Sensor Array Advanced Signal Interpreter Experimental Targeting Computer Core Analyzer Experimental Armor Integrity Analyzer Advanced Hacking Suite System Mapper > --- WEAPON (4) ------- Vortex Driver > --- INVENTORY (15) --- Light Deuterium Engine Cooled Antigrav System Cooled Antigrav System Experimental Matter Compressor (500) Recoil Nullifier Experimental Focal Shield Authchip [Device] Authchip [Processor] Authchip [Armor] Vortex Driver (30) Hypervelocity Gauss Cannon Mini Smartbomb Launcher Peak State ------------ > --- POWER ------------ Micro Fission Core > --- PROPULSION ------- Combat Gravmag System Combat Gravmag System Combat Gravmag System Combat Gravmag System > --- UTILITY ---------- Large Storage Unit Enhanced Optical Array Advanced Sensor Array Advanced Signal Interpreter Experimental Targeting Computer Core Analyzer Experimental Armor Integrity Analyzer Layered Medium Armor Plating Advanced Hacking Suite System Mapper > --- WEAPON ----------- Enhanced Autogun Enhanced Autogun Hypervelocity Gauss Cannon Mini Smartbomb Launcher > --- INVENTORY -------- Light Deuterium Engine Cooled Antigrav System Cooled Antigrav System Experimental Matter Compressor Recoil Nullifier Experimental Focal Shield Authchip [Device] Authchip [Processor] Authchip [Armor] Vortex Driver Vortex Driver Enhanced Autogun Enhanced Autogun [Rating: 115] Favorites ----------- Power Light Nuclear Core Engine Improved Ion Engine Power Core Light Nuclear Core Propulsion Light Treads Treads Light Treads Hover Unit Combat Gravmag System Utility Large Storage Unit Device Advanced Sensor Array Storage Large Storage Unit Processor Core Analyzer Hackware Hacking Suite Protection Hardened Light Armor Plating Weapon Enhanced Autogun Energy Gun Heavy EM Shotgun Energy Cannon Vortex Driver Ballistic Gun Enhanced Autogun Ballistic Cannon Hypervelocity Gauss Cannon Launcher Mini Smartbomb Launcher Impact Weapon Flail Piercing Weapon Heavy Pick Special Melee Weapon Improved Datajack Build | -11 -10 -10 -9 -9 -8 -8 -7 -7 -7 -7 -6 -6 -5 -5 -5 -5 -5 -5 -4 -4 ------- Run | Scr Mat Min Mat Min Mat Sto Fac Low Low Dat Pro Fac Fac Was Fac Upp Upp War Pro Fac Slots Evolved 12 | . . . 2 . 2 . 2 . . . . 2 2 . . . . . . 2 Power . | . . . . . . . . . . . . . . . . . . . . . Propulsion 2 | . . . 1 . . . 1 . . . . . . . . . . . . . Utility 8 | . . . 1 . 2 . 1 . . . . 1 1 . . . . . . 2 Weapon 2 | . . . . . . . . . . . . 1 1 . . . . . . . Parts Attached 251 | 6 7 4 32 3 31 18 17 2 . 1 5 52 40 8 2 1 2 9 . 11 Power 25 | 1 . 1 4 1 1 6 1 1 . . . 8 1 . . . . . . . Engine 8 | 1 . . 4 . 1 2 . . . . . . . . . . . . . . Core 17 | . . 1 . 1 . 4 1 1 . . . 8 1 . . . . . . . Reactor . | . . . . . . . . . . . . . . . . . . . . . Propulsion 46 | 2 2 1 9 . 8 5 6 . . . . 9 2 . . . . 2 . . Treads 26 | 2 2 1 9 . 8 4 . . . . . . . . . . . . . . Leg . | . . . . . . . . . . . . . . . . . . . . . Wheel . | . . . . . . . . . . . . . . . . . . . . . Hover 20 | . . . . . . 1 6 . . . . 9 2 . . . . 2 . . Flight . | . . . . . . . . . . . . . . . . . . . . . Utility 95 | 1 3 . 8 . 11 3 2 1 . . . 21 31 2 2 1 . 4 . 5 Device 32 | . . . 1 . 1 . . . . . . 7 18 . 1 1 . 2 . 1 Storage 6 | 1 1 . 2 . . . . . . . . . 1 1 . . . . . . Processor 16 | . 1 . 1 . 3 . . 1 . . . 4 4 . . . . 2 . . Hackware 15 | . . . . . 1 2 1 . . . . 7 3 . . . . . . 1 Protection 26 | . 1 . 4 . 6 1 1 . . . . 3 5 1 1 . . . . 3 Artifact . | . . . . . . . . . . . . . . . . . . . . . Weapon 85 | 2 2 2 11 2 11 4 8 . . 1 5 14 6 6 . . 2 3 . 6 Energy Gun 1 | . . . . . 1 . . . . . . . . . . . . . . . Energy Cannon 3 | . . . . . . . . . . . . . . . . . . 1 . 2 Ballistic Gun 49 | 2 2 1 9 1 8 4 2 . . . . 10 2 4 . . 1 1 . 2 Ballistic Cannon 12 | . . . . . . . 1 . . 1 2 . 4 2 . . . . . 2 Launcher 10 | . . 1 1 1 2 . 1 . . . 1 1 . . . . 1 1 . . Special Weapon . | . . . . . . . . . . . . . . . . . . . . . Impact Weapon 1 | . . . . . . . 1 . . . . . . . . . . . . . Slashing Weapon . | . . . . . . . . . . . . . . . . . . . . . Piercing Weapon 5 | . . . . . . . . . . . 2 3 . . . . . . . . Special Melee Weapon 4 | . . . 1 . . . 3 . . . . . . . . . . . . . Unidentified Prototypes 14 | . . . . . 1 3 . . . . . 1 1 1 . . . 5 . 2 Parts Lost 40 | . . 1 8 1 2 2 3 . 1 . . 16 . . . . . . . 6 Power 10 | . . 1 2 1 . . 1 . . . . 4 . . . . . . . 1 Propulsion 11 | . . . 3 . . 1 2 . 1 . . 4 . . . . . . . . Utility 12 | . . . 1 . 2 1 . . . . . 7 . . . . . . . 1 Weapon 7 | . . . 2 . . . . . . . . 1 . . . . . . . 4 Highest Loss Streak 4 | . . 1 2 1 1 2 2 . 1 . . 4 . . . . . . . 3 To Critical Strikes 1 | . . . . . . 1 . . . . . . . . . . . . . . Average Slot Usage (%) 94 | . 95 99 92 99 98 98 96 90 76 62 69 81 99 100 100 100 100 99 100 97 Engine 3 | . 14 3 8 3 6 4 . . . . . . . . . . . . . . Core 4 | . . 10 1 7 2 4 5 5 2 . . 4 5 5 5 5 5 5 5 5 Treads 14 | . 27 28 26 33 27 26 . . . . . . . . . . . . . . Hover 10 | . . . . . . . 28 23 17 15 15 19 22 23 23 23 23 23 23 21 Device 2 | . . . . . 3 . . . . . . 4 11 . . 5 5 4 5 5 Storage 8 | . 14 14 11 11 9 9 7 7 7 7 7 6 5 5 5 5 5 5 5 5 Processor 14 | . 5 . 11 11 12 12 7 13 15 15 15 15 22 29 29 29 29 29 29 26 Hackware 6 | . . . . . . 14 22 23 23 23 23 15 3 5 5 5 5 5 5 10 Protection 6 | . 4 14 10 11 17 9 7 1 . . . . 1 5 4 . . . . 4 Ballistic Gun 17 | . 28 28 21 22 18 17 7 . . . . 7 18 17 17 17 16 15 11 12 Ballistic Cannon 1 | . . . . . . . 1 7 7 1 5 3 3 5 5 5 5 5 5 4 Naked Turns . | . . . . . . . . . . . . . . . . . . . . . Heaviest Build 59 | 14 34 34 40 40 52 38 39 32 30 24 24 43 56 51 51 51 46 46 46 59 Greatest Support 60 | 40 40 40 60 60 60 60 41 32 32 24 24 56 56 56 56 56 56 56 56 56 Greatest Overweight (x) 2 | . . . 1 . 1 . 1 . 1 . . 2 1 . . . . . . 1 Average Overweight (x) . | . . . . . . . . . . . . . . . . . . . . . Largest Inventory Capacity 15 | 8 15 15 15 15 15 15 15 15 15 15 15 15 15 15 15 15 15 15 15 15 Average Capacity 14 | 7 12 15 15 15 15 15 15 15 15 15 15 15 15 15 15 15 15 15 15 15 Most Carried 15 | 6 15 15 15 15 15 15 15 15 15 15 15 15 15 15 15 15 15 15 15 14 Average Carried 14 | 2 12 14 14 14 14 14 14 14 15 15 14 14 14 14 15 15 15 14 15 12 Final Capacity 15 | 8 15 15 15 15 15 15 15 15 15 15 15 15 15 15 15 15 15 15 15 15 Final Carried 15 | 6 15 15 15 14 15 15 15 15 15 15 15 15 15 15 15 15 15 15 15 12 Class Distribution -------------------- 34% | Mutant 20% | Machinist-Scout 19% | Hacker-Mutant 14% | Scavenger-Mutant 5% | Machinist-Mutant Dominant Class ---------------- Mutant | -10/Materials Mutant | -10/Mines Scavenger-Mutant | -9/Materials Mutant | -9/Mines Mutant | -8/Materials Scavenger-Mutant | -8/Storage Hacker-Mutant | -7/Factory Hacker-Mutant | -7/Lower Caves Hacker-Mutant | -7/Lower Caves Hacker-Mutant | -7/Data Miner Hacker-Mutant | -6/Proximity Caves Hacker-Mutant | -6/Factory Machinist-Scout | -5/Factory Machinist-Mutant | -5/Waste Machinist-Mutant | -5/Factory Machinist-Scout | -5/Upper Caves Machinist-Scout | -5/Upper Caves Machinist-Scout | -5/Warlord Machinist-Scout | -4/Proximity Caves Hacker-Scout | -4/Factory Resources | -11 -10 -10 -9 -9 -8 -8 -7 -7 -7 -7 -6 -6 -5 -5 -5 -5 -5 -5 -4 -4 ----------- Run | Scr Mat Min Mat Min Mat Sto Fac Low Low Dat Pro Fac Fac Was Fac Upp Upp War Pro Fac Matter Collected 10239 | 223 700 255 825 163 932 412 819 266 297 . 96 1674 1327 878 215 242 353 381 25 156 Remotely . | . . . . . . . . . . . . . . . . . . . . . Salvage Created 9608 | . 638 220 1176 218 1198 506 802 54 80 . 48 1236 1906 277 192 139 188 296 49 385 Parts 512 | . 36 11 69 17 81 28 37 . 5 . 7 53 94 . 9 5 10 21 7 22 Haulers Intercepted 18 | . 2 . 4 . 4 1 . . . . . 2 3 . 1 . . . . 1 Recyclers Shooed 14 | . . . . . 5 3 . . . . . 2 4 . . . . . . . Parts Field Recycled . | . . . . . . . . . . . . . . . . . . . . . Retrieved Matter . | . . . . . . . . . . . . . . . . . . . . . Parts Self-Destructed 122 | . . . . . . . . . 12 . 6 . . . . 4 7 87 6 . Prevented 5 | . . . . . . . . . . . . . . . . . . 5 . . Kills | -11 -10 -10 -9 -9 -8 -8 -7 -7 -7 -7 -6 -6 -5 -5 -5 -5 -5 -5 -4 -4 ------- Run | Scr Mat Min Mat Min Mat Sto Fac Low Low Dat Pro Fac Fac Was Fac Upp Upp War Pro Fac Combat Hostiles Destroyed 161 | . 11 8 23 8 21 7 15 . 1 . 4 12 19 1 2 1 7 12 4 5 Guns 76 | . 11 6 20 5 16 7 4 . . . . 5 2 . . . . . . . Cannons 45 | . . . . . . . 6 . 1 . . 6 17 1 2 1 2 4 . 5 AOE 40 | . . 2 3 3 5 . 5 . . . 4 1 . . . . 5 8 4 . Classes Destroyed 20 | . 5 2 2 1 3 . 2 . 1 . . . . 1 1 . 1 . . 1 Worker 8 | . 1 . 1 . 1 . 2 . . . . 1 2 . . . . . . . Builder 1 | . . . . . . . . . . . . . . . 1 . . . . . Tunneler 3 | . . . . 1 1 . . . . . . . 1 . . . . . . . Hauler 18 | . 2 . 4 . 4 1 . . . . . 2 3 . 1 . . . . 1 Recycler 15 | . . . . . 2 1 4 . . . . 4 4 . . . . . . . Minesweeper 2 | . . . . . . . . . 1 . 1 . . . . . . . . . Mechanic 1 | . . . . . 1 . . . . . . . . . . . . . . . Operator 7 | . 1 . 2 . 1 1 1 . . . . 1 . . . . . . . . Watcher 7 | . 1 . 1 . 1 . . . . . . 2 2 . . . . . . . Swarmer 39 | . . 2 3 3 7 . 3 . . . 4 . . . . . 5 8 4 . Cutter 1 | . . . . . . . . . . . . . . . . . . . . 1 Grunt 54 | . 11 4 11 5 6 1 8 . . . . 1 5 . . . . 1 . 1 Brawler 3 | . . . 2 . . . . . . . . 1 . . . . . . . . Duelist 1 | . . . . . . . 1 . . . . . . . . . . . . . Sentry 30 | . . . 7 . 7 5 1 . 1 . . 2 4 . . 1 1 . . 1 Hunter 13 | . . . . . 1 1 1 . . . . 3 3 . 1 . . 1 . 2 Programmer 16 | . . . . . . . 1 . . . . 5 7 . 1 . . 2 . . Compactor 1 | . . . . . . . . . . . . . . 1 . . . . . . Packrat 1 | . . . . . . . . . . . . . . . . 1 . . . . Assembled 2 | . . 2 . . . . . . . . . . . . . . . . . . Mutant 1 | . . . . . . . . . . . . . . . . . 1 . . . Best Kill Streak 10 | . 3 2 10 3 6 3 4 . 1 . 4 5 4 1 1 1 6 8 4 2 Combat Bots Only 8 | . 3 2 8 3 4 2 4 . 1 . 4 2 3 1 1 1 6 8 4 2 Max Kills in Single Turn 4 | . 1 2 2 2 3 1 3 . 1 . 2 1 2 1 1 1 3 3 4 1 Gunslinging . | . . . . . . . . . . . . . . . . . . . . . Exploded 4 | . . 2 2 2 3 . 2 . . . 2 1 . . . . 3 3 4 . Melee . | . . . . . . . . . . . . . . . . . . . . . Uniques/NPCs Destroyed . | . . . . . . . . . . . . . . . . . . . . . Combat | -11 -10 -10 -9 -9 -8 -8 -7 -7 -7 -7 -6 -6 -5 -5 -5 -5 -5 -5 -4 -4 -------- Run | Scr Mat Min Mat Min Mat Sto Fac Low Low Dat Pro Fac Fac Was Fac Upp Upp War Pro Fac Damage Taken 9938 | . 512 425 1566 211 896 736 828 . 88 . . 2651 981 . 187 . 75 132 . 650 Core 1872 | . 74 47 337 43 85 118 113 . 61 . . 697 169 . . . 44 45 . 39 Absorbed by Shields 133 | . . . . . 133 . . . . . . . . . . . . . . . Regen/Repaired (Parts) 898 | . 182 . 319 . . 27 . . . . . 122 248 . . . . . . . Core Remaining (%) 55 | 100 . 51 . 5 . 63 . . . . 75 18 . . . . . . 74 . Volleys Fired 876 | . 72 32 102 13 83 44 95 2 6 . 4 140 128 16 36 12 27 30 1 33 Largest 4 | . 2 2 2 2 2 2 2 1 1 . 1 3 4 1 1 1 2 1 1 1 Hottest 132 | . 40 40 46 46 46 50 50 48 48 . 48 75 132 61 61 61 86 80 80 100 Shots Fired 1354 | . 144 63 195 24 162 88 137 2 6 . 4 219 151 16 36 12 31 30 1 33 Gun 908 | . 144 62 193 22 158 88 84 . . . . 123 30 . . . 4 . . . Cannon 424 | . . . . . . . 50 2 6 . 1 96 121 16 36 12 24 27 . 33 Launcher 22 | . . 1 2 2 4 . 3 . . . 3 . . . . . 3 3 1 . Special . | . . . . . . . . . . . . . . . . . . . . . Kinetic 1327 | . 144 62 193 22 158 88 134 2 6 . 1 219 151 16 36 12 28 27 . 28 Thermal . | . . . . . . . . . . . . . . . . . . . . . Explosive 22 | . . 1 2 2 4 . 3 . . . 3 . . . . . 3 3 1 . Electromagnetic . | . . . . . . . . . . . . . . . . . . . . . Entropic 5 | . . . . . . . . . . . . . . . . . . . . 5 Robot Hit Streak 35 | . 12 7 21 9 11 35 8 1 1 . 2 19 6 8 4 4 8 12 . 21 Robot Miss Streak 6 | . 6 4 3 2 4 3 4 1 3 . . 6 5 1 3 2 3 2 . 1 Penetration Max 1 | . . . . . . . . . . . . . 1 . . . . 1 . 1 Secondary Targets 7 | . 3 . 2 . 1 1 . . . . . . . . . . . . . . Max Gunslinging Chain 1 | . 1 . 1 . 1 1 . . . . . . . . . . . . . . Shots Hit Robots 837 | . 92 36 153 14 114 59 78 1 2 . 4 109 75 14 17 8 21 22 . 18 Core Hits 356 | . 30 13 49 9 58 17 33 1 2 . 5 52 42 2 6 2 8 15 4 8 Critical Kills 43 | . . . . 1 1 . . . . . . 1 23 1 4 2 2 2 . 6 Critical Parts Destroyed 49 | . 1 . . . . 1 . . . . . . 16 3 10 . 2 11 . 5 Critical Strikes 108 | . 1 . 1 1 1 2 4 . 1 . . 4 39 9 14 2 4 14 . 11 Destroy 100 | . 1 . 1 1 1 2 . . . . . 1 39 9 14 2 4 14 . 11 Blast 8 | . . . . . . . 4 . 1 . . 3 . . . . . . . . Melee Attacks 24 | . . . 1 . . . 6 . . . 5 12 . . . . . . . . Impact 4 | . . . . . . . 4 . . . . . . . . . . . . . Slashing . | . . . . . . . . . . . . . . . . . . . . . Piercing 17 | . . . . . . . . . . . 5 12 . . . . . . . . Sneak Attacks 3 | . . . 1 . . . 2 . . . . . . . . . . . . . Combat Hostiles 1 | . . . . . . . 1 . . . . . . . . . . . . . Follow-up Attacks . | . . . . . . . . . . . . . . . . . . . . . Damage Inflicted 17877 | . 1191 536 2359 522 2295 1004 2480 54 51 . 395 2773 1617 234 279 25 584 876 232 370 Guns 9047 | . 1164 432 2095 212 1711 978 758 . . . . 1304 340 . . . 53 . . . Cannons 4470 | . . . . . . . 847 54 51 . 30 989 1117 234 279 25 69 405 . 370 Explosions 4141 | . . 97 238 275 560 . 875 . . . 291 480 160 . . . 462 471 232 . Melee 74 | . . . . . . . . . . . 74 . . . . . . . . . Ramming 145 | . 27 7 26 35 24 26 . . . . . . . . . . . . . . Kinetic 13363 | . 1164 432 2095 212 1711 978 1605 54 51 . 30 2293 1457 234 279 25 122 405 . 216 Thermal 1008 | . . . . . . . 544 . . . . 464 . . . . . . . . Explosive 3117 | . . 97 238 275 560 . 331 . . . 291 . 160 . . . 462 471 232 . Electromagnetic 16 | . . . . . . . . . . . . 16 . . . . . . . . Impact . | . . . . . . . . . . . . . . . . . . . . . Slashing . | . . . . . . . . . . . . . . . . . . . . . Piercing 74 | . . . . . . . . . . . 74 . . . . . . . . . Entropic 154 | . . . . . . . . . . . . . . . . . . . . 154 Highest Corruption 27 | . . . . . . . 1 1 1 1 1 27 4 4 4 4 4 4 . . Average Corruption 5 | . . . . . . . 1 1 1 1 1 12 2 4 4 4 4 4 . . Corruption Purged . | . . . . . . . . . . . . . . . . . . . . . Corruption Blocked 8 | . . . . . . . . . . . . . 8 . . . . . . . Effects 118 | . . . . . . . 2 . 3 . 4 59 19 6 5 5 15 . . . Message Errors 30 | . . . . . . . . . 1 . 1 13 6 3 2 2 2 . . . Matter Fused 25 | . . . . . . . . . . . . 13 2 2 1 . 7 . . . Heat Flow Errors 15 | . . . . . . . . . . . . 6 5 . 1 2 1 . . . Energy Discharges 13 | . . . . . . . 1 . 1 . . 8 . . . 1 2 . . . Parts Rejected 1 | . . . . . . . . . . . . 1 . . . . . . . . Data Loss (minor) 16 | . . . . . . . 1 . . . 3 8 2 . 1 . 1 . . . Data Loss (major) 3 | . . . . . . . . . 1 . . 1 1 . . . . . . . Misfires 6 | . . . . . . . . . . . . 2 2 . . . 2 . . . Alerts 1 | . . . . . . . . . . . . . . 1 . . . . . . Weapon Failures 8 | . . . . . . . . . . . . 7 1 . . . . . . . Overload Shots . | . . . . . . . . . . . . . . . . . . . . . Overflow Damage 332 | . . . . 61 3 . 24 . . . 39 62 21 . . . 69 53 . . Projectiles . | . . . . . . . . . . . . . . . . . . . . . Explosions 326 | . . . . 61 3 . 24 . . . 33 62 21 . . . 69 53 . . Melee 6 | . . . . . . . . . . . 6 . . . . . . . . . Knockbacks 24 | . . . 1 . 1 . 5 . . . 1 8 6 . 1 . . . . 1 Impact 2 | . . . 1 . 1 . . . . . . . . . . . . . . . Kinetic 22 | . . . . . . . 5 . . . 1 8 6 . 1 . . . . 1 Secondary . | . . . . . . . . . . . . . . . . . . . . . Self-Inflicted Damage 276 | . . 20 67 42 24 . . . . . . 74 49 . . . . . . . Shots 9 | . . 1 2 2 1 . . . . . . 2 1 . . . . . . . Rammed 21 | . 3 3 3 3 5 4 . . . . . . . . . . . . . . Targets Rammed 24 | . 3 3 4 4 6 4 . . . . . . . . . . . . . . Kicked . | . . . . . . . . . . . . . . . . . . . . . Crushed 3 | . . . 1 1 1 . . . . . . . . . . . . . . . Highest Temperature 422 | . 8 73 38 29 106 117 108 3 . . . 422 366 144 256 248 274 180 40 238 Average Temperature 65 | . 2 40 11 11 22 26 22 2 . . . 100 99 77 90 89 66 64 22 53 Received Heat Transfer 2346 | . 288 180 639 54 234 279 252 . 12 . . 210 198 . . . . . . . Effects 7 | . . . . . . . . . . . . 3 3 . . . 1 . . . Shutdowns 3 | . . . . . . . . . . . . 2 1 . . . . . . . Energy Bleed 1 | . . . . . . . . . . . . . . . . . 1 . . . Interference 2 | . . . . . . . . . . . . . 2 . . . . . . . Short Circuit 1 | . . . . . . . . . . . . 1 . . . . . . . . Siege Activations . | . . . . . . . . . . . . . . . . . . . . . Robots Corrupted . | . . . . . . . . . . . . . . . . . . . . . Combat Hostiles . | . . . . . . . . . . . . . . . . . . . . . Parts Fried . | . . . . . . . . . . . . . . . . . . . . . Impact Corruptions . | . . . . . . . . . . . . . . . . . . . . . Robots Melted . | . . . . . . . . . . . . . . . . . . . . . Combat Hostiles . | . . . . . . . . . . . . . . . . . . . . . Parts Melted 1 | . . . . . . . . . . . . . . . . . . 1 . . Heat Transferred 600 | . . . . . . . 350 . . . . 250 . . . . . . . . Parts Sabotaged . | . . . . . . . . . . . . . . . . . . . . . Parts Stolen . | . . . . . . . . . . . . . . . . . . . . . Parts Stripped . | . . . . . . . . . . . . . . . . . . . . . Power Chain Reactions . | . . . . . . . . . . . . . . . . . . . . . Missiles Intercepted . | . . . . . . . . . . . . . . . . . . . . . Alert | -11 -10 -10 -9 -9 -8 -8 -7 -7 -7 -7 -6 -6 -5 -5 -5 -5 -5 -5 -4 -4 ------- Run | Scr Mat Min Mat Min Mat Sto Fac Low Low Dat Pro Fac Fac Was Fac Upp Upp War Pro Fac Peak Influence 571 | . 186 105 246 230 520 397 571 . . . . 188 407 142 232 . . . . 199 Initial 200 | . . 15 27 55 37 200 58 . . . . 73 72 142 99 . . . . 56 Average 126 | . 71 35 107 63 312 224 184 . . . . 82 157 142 172 . . . . 112 Maximum Alert Level 2 | . . . 1 1 2 1 2 . . . . . 2 . 1 . . . . . Low Security (%) 81 | 100 100 100 90 93 27 37 67 . . . . 100 68 100 66 . . . . 100 Level 1 14 | . . . 9 6 31 62 21 . . . . . 29 . 33 . . . . . Level 2 4 | . . . . . 40 . 11 . . . . . 1 . . . . . . . Level 3 . | . . . . . . . . . . . . . . . . . . . . . Level 4 . | . . . . . . . . . . . . . . . . . . . . . Level 5 . | . . . . . . . . . . . . . . . . . . . . . High Security . | . . . . . . . . . . . . . . . . . . . . . Max Security . | . . . . . . . . . . . . . . . . . . . . . Squads Dispatched 46 | . 3 . 4 . 1 . 6 . . . . 14 12 . 1 . . . . 5 Investigation 22 | . 2 . 2 . 1 . 2 . . . . 8 7 . . . . . . . Extermination 8 | . . . . . . . 1 . . . . 4 3 . . . . . . . Reinforcement 15 | . 1 . 2 . . . 2 . . . . 2 2 . 1 . . . . 5 Assault 1 | . . . . . . . 1 . . . . . . . . . . . . . Garrison . | . . . . . . . . . . . . . . . . . . . . . Intercept . | . . . . . . . . . . . . . . . . . . . . . Searches Triggered . | . . . . . . . . . . . . . . . . . . . . . Data Miner Redirects 7 | . . . . . . . . . . . . 7 . . . . . . . . Construction Impeded 3 | . . . . . . . . . . . . 1 1 . . . . . . 1 Haulers Reinforced 2 | . . . . . . . . . . . . . 1 . . . . . . 1 Active Scanning Responses . | . . . . . . . . . . . . . . . . . . . . . Cargo Convoy Interrupts 1 | . . . . . . . . . . . . . 1 . . . . . . . Stealth | -11 -10 -10 -9 -9 -8 -8 -7 -7 -7 -7 -6 -6 -5 -5 -5 -5 -5 -5 -4 -4 --------- Run | Scr Mat Min Mat Min Mat Sto Fac Low Low Dat Pro Fac Fac Was Fac Upp Upp War Pro Fac Distress Signals 6 | . . . 3 . 1 . . . . . . . 2 . . . . . . . Communications Jammed . | . . . . . . . . . . . . . . . . . . . . . Distress Signals . | . . . . . . . . . . . . . . . . . . . . . Times Spotted 254 | . 28 8 33 11 29 8 38 . 2 . 2 21 30 2 5 . 5 23 . 9 Peak Tracking Total 10 | . 3 2 8 3 7 4 8 . 1 . 1 5 6 2 2 . 2 10 . 4 Tactical Retreats 23 | . 1 . . 2 2 . 10 . 1 . . 1 3 1 . . . 1 . 1 Traps | -11 -10 -10 -9 -9 -8 -8 -7 -7 -7 -7 -6 -6 -5 -5 -5 -5 -5 -5 -4 -4 ------- Run | Scr Mat Min Mat Min Mat Sto Fac Low Low Dat Pro Fac Fac Was Fac Upp Upp War Pro Fac Traps Triggered 11 | . 2 . 4 . . . 1 . . . . 2 2 . . . . . . . Indirectly . | . . . . . . . . . . . . . . . . . . . . . Trap Hack Attempts 23 | . . . 23 . . . . . . . . . . . . . . . . . Triggered . | . . . . . . . . . . . . . . . . . . . . . Disarmed . | . . . . . . . . . . . . . . . . . . . . . Reprogrammed 2 | . . . 2 . . . . . . . . . . . . . . . . . Reused . | . . . . . . . . . . . . . . . . . . . . . Traps Extracted 2 | . . . 2 . . . . . . . . . . . . . . . . . Installed . | . . . . . . . . . . . . . . . . . . . . . Triggered 10 | . . . . . . . . . . . . . 1 . . . . 9 . . Most Traps Carried 2 | . . . 2 2 2 2 . . . . . . . . . . . . . . Machines | -11 -10 -10 -9 -9 -8 -8 -7 -7 -7 -7 -6 -6 -5 -5 -5 -5 -5 -5 -4 -4 ---------- Run | Scr Mat Min Mat Min Mat Sto Fac Low Low Dat Pro Fac Fac Was Fac Upp Upp War Pro Fac Machines Disabled 14 | . . . . . . 1 3 . . . . 8 1 . . . 1 . . . Max in Single Turn 4 | . . . . . . 1 2 . . . . 4 1 . . . 1 . . . Garrison Access 4 | . . . . . . . 2 . . . . 1 1 . . . . . . . Machines Sabotaged . | . . . . . . . . . . . . . . . . . . . . . Garrisons Compromised 1 | . . . . . . . . . . . . . 1 . . . . . . . Overloaded Fab Kills . | . . . . . . . . . . . . . . . . . . . . . Hacking | -11 -10 -10 -9 -9 -8 -8 -7 -7 -7 -7 -6 -6 -5 -5 -5 -5 -5 -5 -4 -4 --------- Run | Scr Mat Min Mat Min Mat Sto Fac Low Low Dat Pro Fac Fac Was Fac Upp Upp War Pro Fac Machines Accessed 88 | . 10 . 12 . 8 8 6 1 . 4 1 17 15 . 2 . . 4 . . Terminals 41 | . 7 . 6 . 5 5 2 . . . 1 9 5 . 1 . . . . . Fabricators 11 | . . . . . . . 1 . . . . 5 5 . . . . . . . Repair Stations 10 | . 1 . 2 . . 1 . . . . . 1 4 . 1 . . . . . Recycling Units 8 | . 2 . 2 . 2 2 . . . . . . . . . . . . . . Scanalyzers 5 | . . . 2 . 1 . 1 . . . . 1 . . . . . . . . Garrison Access 4 | . . . . . . . 2 . . . . 1 1 . . . . . . . Total Hacks 268 | . 25 . 29 . 21 17 20 1 . 29 2 67 40 . 5 . . 12 . . Successful 181 | . 12 . 21 . 12 9 11 1 . 29 2 45 25 . 2 . . 12 . . Failed 87 | . 13 . 8 . 9 8 9 . . . . 22 15 . 3 . . . . . Catastrophic 8 | . 2 . 2 . . . . . . . . 3 1 . . . . . . . Database Lockouts . | . . . . . . . . . . . . . . . . . . . . . Manual 86 | . 11 . 9 . 11 3 8 . . . . 35 8 . . . . 1 . . Terminals 114 | . 16 . 16 . 14 9 9 . . . 2 34 11 . 3 . . . . . Fabricators 38 | . . . . . . . 4 . . . . 21 13 . . . . . . . Repair Stations 34 | . 5 . 6 . . 2 . . . . . 4 15 . 2 . . . . . Recycling Units 15 | . 4 . 2 . 3 6 . . . . . . . . . . . . . . Scanalyzers 16 | . . . 5 . 4 . 3 . . . . 4 . . . . . . . . Garrison Access 9 | . . . . . . . 4 . . . . 4 1 . . . . . . . Terminal Hacks 88 | . 6 . 6 . 4 4 3 1 . 29 2 15 4 . 2 . . 12 . . Record 24 | . . . . . . . . . . 11 2 . . . . . . 11 . . Part Schematic 16 | . 1 . . . . . . . . 10 . 5 . . . . . . . . Robot Schematic 5 | . . . . . . . . . . 5 . . . . . . . . . . Robot Analysis 3 | . 1 . . . 1 1 . . . . . . . . . . . . . . Prototype ID Bank 7 | . 1 . . . 1 . . . . 3 . 2 . . . . . . . . Open Door 5 | . . . . . . 3 . 1 . . . . . . . . . 1 . . Branch Access Points 3 | . . . . . . . 1 . . . . 1 . . 1 . . . . . Terminal Index 2 | . . . . . . . . . . . . 1 . . 1 . . . . . Fabricator Index 2 | . . . . . . . 1 . . . . . 1 . . . . . . . Repair Station Index 2 | . . . . . . . . . . . . 1 1 . . . . . . . Alert Level 8 | . 1 . 2 . . . . . . . . 3 2 . . . . . . . Unreport Threat 3 | . . . 1 . . . 1 . . . . 1 . . . . . . . . Locate Traps 4 | . 1 . 2 . 1 . . . . . . . . . . . . . . . Recall Investigation 1 | . . . . . . . . . . . . 1 . . . . . . . . Hauler Manifests 3 | . 1 . 1 . 1 . . . . . . . . . . . . . . . Fabricator Hacks 20 | . . . . . . . 1 . . . . 12 7 . . . . . . . Network Status 1 | . . . . . . . . . . . . 1 . . . . . . . . Load Schematic 13 | . . . . . . . 1 . . . . 7 5 . . . . . . . Build 6 | . . . . . . . . . . . . 4 2 . . . . . . . Repair Station Hacks 24 | . 4 . 6 . . 2 . . . . . 2 10 . . . . . . . Scan Component 13 | . 2 . 3 . . 1 . . . . . 1 6 . . . . . . . Repair 11 | . 2 . 3 . . 1 . . . . . 1 4 . . . . . . . Recycling Unit Hacks 7 | . 1 . 2 . 2 2 . . . . . . . . . . . . . . Retrieve Components 7 | . 1 . 2 . 2 2 . . . . . . . . . . . . . . Scanalyzer 15 | . . . 5 . 4 . 2 . . . . 4 . . . . . . . . Insert Component 8 | . . . 2 . 2 . 1 . . . . 3 . . . . . . . . Analyze 7 | . . . 3 . 2 . 1 . . . . 1 . . . . . . . . Garrison Access Hacks 4 | . . . . . . . 2 . . . . 1 1 . . . . . . . Seal Access 4 | . . . . . . . 2 . . . . 1 1 . . . . . . . Unauthorized Hacks 23 | . 1 . 2 . 2 1 3 . . . . 11 3 . . . . . . . Terminals 11 | . 1 . 2 . 2 . 2 . . . . 4 . . . . . . . . Assimilate 1 | . . . . . 1 . . . . . . . . . . . . . . . Botnet 5 | . . . 1 . . . 1 . . . . 3 . . . . . . . . Operators 5 | . 1 . 1 . 1 . 1 . . . . 1 . . . . . . . . Fabricators 11 | . . . . . . . 1 . . . . 7 3 . . . . . . . Report 1 | . . . . . . . . . . . . 1 . . . . . . . . Prioritize 2 | . . . . . . . . . . . . 2 . . . . . . . . Recompile 8 | . . . . . . . 1 . . . . 4 3 . . . . . . . Repair Stations . | . . . . . . . . . . . . . . . . . . . . . Recycling Units 1 | . . . . . . 1 . . . . . . . . . . . . . . Reject 1 | . . . . . . 1 . . . . . . . . . . . . . . Scanalyzers . | . . . . . . . . . . . . . . . . . . . . . Garrison Access . | . . . . . . . . . . . . . . . . . . . . . Data Cores Recovered 4 | . . . . . 1 1 . . . . . 2 . . . . . . . . Used 1 | . . . . . . 1 . . . . . . . . . . . . . . Hacking Detections 68 | . 10 . 9 . 7 7 5 . . . 1 16 11 . 2 . . . . . Full Trace Events 10 | . . . 1 . 1 . 1 . . . . 4 3 . . . . . . . Feedback Events 1 | . . . . . . . . . . . . 1 . . . . . . . . Corruption 1 | . . . . . . . . . . . . 1 . . . . . . . . Feedback Blocked . | . . . . . . . . . . . . . . . . . . . . . Robot Schematics Acquired 5 | . . . . . . . . . . 5 . . . . . . . . . . Robots Built . | . . . . . . . . . . . . . . . . . . . . . Authchips . | . . . . . . . . . . . . . . . . . . . . . Time . | . . . . . . . . . . . . . . . . . . . . . Total Robot Build Rating . | . . . . . . . . . . . . . . . . . . . . . Part Schematics Acquired 22 | . 1 . 2 . 2 . 1 . . 10 . 6 . . . . . . . . Parts Built 8 | . . . . . . . . . . . . 6 2 . . . . . . . Authchips 5 | . . . . . . . . . . . . 3 2 . . . . . . . Time 466 | . . . . . . . . . . . . 329 137 . . . . . . . Total Part Build Rating 49 | . . . . . . . . . . . . 37 12 . . . . . . . Parts Repaired 10 | . 2 . 3 . . 1 . . . . . 1 3 . . . . . . . Time 464 | . 52 . 102 . . 38 . . . . . 30 242 . . . . . . . Parts Recycled . | . . . . . . . . . . . . . . . . . . . . . Recycled Matter . | . . . . . . . . . . . . . . . . . . . . . Retrieved Matter . | . . . . . . . . . . . . . . . . . . . . . Retrieved Components 40 | . 5 . 13 . 11 11 . . . . . . . . . . . . . . Parts Scanalyzed 6 | . . . 2 . 2 . 1 . . . . 1 . . . . . . . . Part Schematics Acquired 6 | . . . 2 . 2 . 1 . . . . 1 . . . . . . . . Parts Damaged . | . . . . . . . . . . . . . . . . . . . . . Bothacking | -11 -10 -10 -9 -9 -8 -8 -7 -7 -7 -7 -6 -6 -5 -5 -5 -5 -5 -5 -4 -4 ------------ Run | Scr Mat Min Mat Min Mat Sto Fac Low Low Dat Pro Fac Fac Was Fac Upp Upp War Pro Fac Used RIF Installer . | . . . . . . . . . . . . . . . . . . . . . Robots Hacked 2 | . . . 1 . . . 1 . . . . . . . . . . . . . Non-combat 2 | . . . 1 . . . 1 . . . . . . . . . . . . . Combat . | . . . . . . . . . . . . . . . . . . . . . Robot Hacks Applied 2 | . . . 1 . . . 1 . . . . . . . . . . . . . parse_system 1 | . . . 1 . . . . . . . . . . . . . . . . . find_chute 1 | . . . . . . . 1 . . . . . . . . . . . . . Relay Couplers Released . | . . . . . . . . . . . . . . . . . . . . . Fabnet Peak Effective % . | . . . . . . . . . . . . . . . . . . . . . Robots Rewired 5 | . . . . . . . 1 . . . . . . . . . 4 . . . Allies Hacked . | . . . . . . . . . . . . . . . . . . . . . Hacks Repelled . | . . . . . . . . . . . . . . . . . . . . . Allies | -11 -10 -10 -9 -9 -8 -8 -7 -7 -7 -7 -6 -6 -5 -5 -5 -5 -5 -5 -4 -4 -------- Run | Scr Mat Min Mat Min Mat Sto Fac Low Low Dat Pro Fac Fac Was Fac Upp Upp War Pro Fac Total Allies 6 | . . . . . . . 1 . . . 1 . . . . . 4 . . . Largest Group 4 | . . . . . . . 1 . . . 1 1 . . . . 4 4 . . Highest-Rated Group 96 | . . . . . . . 16 . . . 96 96 . . . . 85 85 . . Highest-Rated Ally 96 | . . . . . . . 16 . . . 96 96 . . . . 25 25 . . Total Orders . | . . . . . . . . . . . . . . . . . . . . . Ally Attacks 20 | . . . . . . . 2 . . . 1 13 . . . . 4 . . . Total Damage 746 | . . . . . . . 18 . . . . 606 . . . . 122 . . . Kills 4 | . . . . . . . . . . . . 2 . . . . 2 . . . Allies Corrupted . | . . . . . . . . . . . . . . . . . . . . . Allies Melted . | . . . . . . . . . . . . . . . . . . . . . Intel | -11 -10 -10 -9 -9 -8 -8 -7 -7 -7 -7 -6 -6 -5 -5 -5 -5 -5 -5 -4 -4 ------- Run | Scr Mat Min Mat Min Mat Sto Fac Low Low Dat Pro Fac Fac Was Fac Upp Upp War Pro Fac Robot Analysis Total 3 | . 1 . . . 1 1 . . . . . . . . . . . . . . Derelict Logs Recovered 8 | . . 2 . 1 . . . 1 1 . . . . . . 1 . . 2 . Drone Launches . | . . . . . . . . . . . . . . . . . . . . . Drone Recoveries . | . . . . . . . . . . . . . . . . . . . . . Exploration | -11 -10 -10 -9 -9 -8 -8 -7 -7 -7 -7 -6 -6 -5 -5 -5 -5 -5 -5 -4 -4 ------------- Run | Scr Mat Min Mat Min Mat Sto Fac Low Low Dat Pro Fac Fac Was Fac Upp Upp War Pro Fac Turns Passed 16897 | 84 1974 1189 2080 1044 1186 1008 808 170 257 76 346 2370 1875 175 260 259 463 761 302 210 Spaces Moved 12936 | 51 948 656 917 615 528 501 937 251 327 98 409 2204 1781 186 248 331 456 899 434 159 Core 10 | 10 . . . . . . . . . . . . . . . . . . . . Treads 4206 | 41 948 656 917 615 528 501 . . . . . . . . . . . . . . Legs . | . . . . . . . . . . . . . . . . . . . . . Wheels . | . . . . . . . . . . . . . . . . . . . . . Hover 8720 | . . . . . . . 937 251 327 98 409 2204 1781 186 248 331 456 899 434 159 Flight . | . . . . . . . . . . . . . . . . . . . . . Fastest Speed 50 | 50 160 160 160 160 160 160 55 62 62 76 76 58 58 68 68 68 68 68 68 68 Average Speed 99 | 138 160 160 166 160 160 160 56 62 73 76 76 79 67 68 68 68 68 68 68 70 Slowest Speed 240 | 160 160 160 240 160 240 160 128 62 146 76 76 220 142 68 68 68 68 68 68 138 Overloaded Moves . | . . . . . . . . . . . . . . . . . . . . . Propulsion Burnouts . | . . . . . . . . . . . . . . . . . . . . . Robots Hopped . | . . . . . . . . . . . . . . . . . . . . . Cave-ins Triggered 3 | . . . . . . . . . . . . 3 . . . . . . . . Exploration Rate (%) 54 | 4 97 96 80 79 45 48 21 50 40 73 56 28 38 88 8 59 61 93 78 4 Regions Visited 20 Branch Regions 11 Pre-discovered Areas 5 | . . 2 . . . . . . . 1 . . . . . . . 1 1 . Known Exits Taken 8 | . . . . . 1 . 1 . . . . 1 . . 1 1 1 1 1 . Unknown Exits Taken 10 | 1 1 1 1 1 . 1 . 1 1 1 1 . . . . . . . . . Scrap Searched 16 | . . 2 . 1 . . . 2 2 . 2 . . . . 4 2 . 1 . Spaces Dug 50 | . . . . 21 . . 6 . . . . 21 . . . . . . . 2 Terrain Destroyed 300 | . . 7 13 21 30 . 51 . 1 . 25 64 20 . . . 32 22 10 4 Melee 15 | . . . . . . . 4 . . . . 11 . . . . . . . . Projectile 44 | . . . . . . . 11 . 1 . . 23 5 . . . . . . 4 AOE 241 | . . 7 13 21 30 . 36 . . . 25 30 15 . . . 32 22 10 . Terrain Rammed . | . . . . . . . . . . . . . . . . . . . . . Walls Destroyed . | . . . . . . . . . . . . . . . . . . . . . Machines Disabled . | . . . . . . . . . . . . . . . . . . . . . Actions | -11 -10 -10 -9 -9 -8 -8 -7 -7 -7 -7 -6 -6 -5 -5 -5 -5 -5 -5 -4 -4 --------- Run | Scr Mat Min Mat Min Mat Sto Fac Low Low Dat Pro Fac Fac Was Fac Upp Upp War Pro Fac Total 15728 | 62 1265 732 1285 653 742 647 1111 263 337 99 430 2649 2325 217 303 353 578 1018 439 220 Wait 1244 | . 199 31 159 17 53 45 26 2 1 . 5 198 318 1 16 8 82 63 5 15 Move 12914 | 50 947 655 916 614 527 500 936 250 326 97 408 2200 1781 185 247 330 455 898 433 159 Hop . | . . . . . . . . . . . . . . . . . . . . . Pick Up 162 | 6 23 4 25 1 14 12 14 4 1 . 1 26 23 1 . 1 . 6 . . Fast Attach 83 | 6 2 . 9 . 5 8 2 . . 1 1 15 18 5 2 . . 6 . 3 Attach 59 | . 3 1 9 1 7 2 8 1 . . . 20 4 . . . . . . 3 Detach 7 | . . . . . 1 1 3 . . . . 2 . . . . . . . . Swap 109 | . 2 3 14 2 19 8 7 1 . . 4 17 18 3 . 1 2 3 . 5 Drop 188 | . 14 3 23 1 27 23 14 3 3 1 2 16 35 6 2 1 . 12 . 2 Fire 876 | . 72 32 102 13 83 44 95 2 6 . 4 140 128 16 36 12 27 30 1 33 Melee 24 | . . . 1 . . . 6 . . . 5 12 . . . . . . . . Ram . | . . . . . . . . . . . . . . . . . . . . . Kick . | . . . . . . . . . . . . . . . . . . . . . Crush 24 | . 3 3 4 4 6 4 . . . . . . . . . . . . . . Escape Stasis 3 | . . . . . . . . . . . . 3 . . . . . . . . Rewire 12 | . . . . . . . . . . . . . . . . . 12 . . . Trap 23 | . . . 23 . . . . . . . . . . . . . . . . . Miscellaneous . | . . . . . . . . . . . . . . . . . . . . . Route ------- -11/Scrapyard -10/Materials (discovered 4 exits: *Mat x3 / [*Min]) -10/Mines (discovered 2 exits: *Mat x2) -9/Materials (discovered 3 exits: *Mat x2 / [*Min]) -9/Mines (discovered 2 exits: *Mat x2) -8/Materials (discovered 2 exits: *Fac / *Sto) -8/Storage -7/Factory (discovered 3 exits: *Fac / *Low x2) -7/Lower Caves -7/Lower Caves -7/Data Miner -6/Proximity Caves -6/Factory (discovered 3 exits: *Fac / *Low x2) -5/Factory (discovered 2 exits: *Upp x2) -5/Waste -5/Factory (discovered 4 exits: *Upp x2 / *Ext x2) -5/Upper Caves -5/Upper Caves (discovered 2 exits: *Fac / *War) -5/Warlord -4/Proximity Caves -4/Factory (discovered 3 exits: *Res x2 / Arm) History --------- Turn | Location | Event 5 | -11/Scrapyard | Discovered new exit (range 16) 85 | -11/Scrapyard | Entered Materials 212 | -10/Materials | Discovered new exit (range 16) 314 | -10/Materials | Build established: Mutant 563 | -10/Materials | Discovered new exit (range 15) 930 | -10/Materials | Repaired Lgt. Treads 957 | -10/Materials | Repaired Lgt. Treads 1050 | -10/Materials | Discovered new exit (range 18) 1454 | -10/Materials | Discovered new exit (range 10) 2059 | -10/Materials | Entered Mines 2100 | -10/Mines | Assembled infested the area 2115 | -10/Mines | Learned location of Zion (-6) 2269 | -10/Mines | Discovered new exit (range 7) 2667 | -10/Mines | Received a Rocket Launcher from a helpful Derelict 3101 | -10/Mines | Learned location of Storage (-8) 3107 | -10/Mines | Discovered new exit (range 7) 3248 | -10/Mines | Entered Materials 3248 | -9/Materials | Evolved 2 slots: Propulsion x1, Utility x1 3778 | -9/Materials | Build established: Scavenger-Mutant 3807 | -9/Materials | Discovered new exit (range 16) 3834 | -9/Materials | Core integrity fell below 50% 4091 | -9/Materials | Repaired Lgt. Treads 4112 | -9/Materials | Build established: Mutant 4119 | -9/Materials | Repaired Lgt. Treads 4468 | -9/Materials | Build established: Scavenger-Mutant 4552 | -9/Materials | Repaired Cmb. Airjet 4617 | -9/Materials | Core integrity fell below 20% 4671 | -9/Materials | Destroyed 8 combat bots 4923 | -9/Materials | Discovered new exit (range 8) 5013 | -9/Materials | Discovered new exit (range 15) 5204 | -9/Materials | Build established: Mutant 5328 | -9/Materials | Entered Mines 5337 | -9/Mines | Met a Derelict bent on vengeance 5360 | -9/Mines | Discovered new exit (range 5) 6045 | -9/Mines | Learned location of 1 exit from Materials 6159 | -9/Mines | Discovered new exit (range 6) 6178 | -9/Mines | Deemed a non-threat by the Exiles lab entrance 6372 | -9/Mines | Entered Materials 6372 | -8/Materials | Evolved 2 slots: Utility x2 6373 | -8/Materials | Identified exit to Storage 7343 | -8/Materials | Build established: Scavenger-Mutant 7348 | -8/Materials | Discovered new exit (range 17) 7558 | -8/Materials | Entered Storage 8526 | -8/Storage | Repaired Lgt. Nuclear Core 8541 | -8/Storage | Discovered new exit (range 8) 8566 | -8/Storage | Entered Factory 8566 | -7/Factory | Evolved 2 slots: Propulsion x1, Utility x1 8597 | -7/Factory | Discovered new exit (range 4) 8822 | -7/Factory | Discovered new exit (range 20) 8851 | -7/Factory | Build established: Hacker-Mutant 8991 | -7/Factory | Identified exit to Lower Caves 9366 | -7/Factory | First assault squad dispatched 9374 | -7/Factory | Entered Lower Caves 9393 | -7/Lower Caves | Encountered a Warlord checkpoint 9475 | -7/Lower Caves | Learned Factory emergency access door positions 9526 | -7/Lower Caves | Discovered new exit (range 12) 9544 | -7/Lower Caves | Entered another Lower Caves area 9611 | -7/Lower Caves | Spotted B-75 Beast 9741 | -7/Lower Caves | Learned 8 Factory zone layouts 9748 | -7/Lower Caves | Attracted the attention of an 0b10 checkpoint 9790 | -7/Lower Caves | Discovered new exit (range 10) 9801 | -7/Lower Caves | Entered Data Miner 9801 | -7/Data Miner | Discovered new exit (range 6) 9822 | -7/Data Miner | Met Data Miner 9839 | -7/Data Miner | Learned location of Section 7 (-3) 9839 | -7/Data Miner | Acquired the access code to Warlord's prototype stash 9851 | -7/Data Miner | Received God Mode back door access code from Data Miner 9877 | -7/Data Miner | Entered Proximity Caves 10169 | -6/Proximity Caves | Escorted by Enhanced Grunt 10194 | -6/Proximity Caves | Discovered new exit (range 16) 10223 | -6/Proximity Caves | Entered Factory 10223 | -6/Factory | Accompanied by 1 ally 10223 | -6/Factory | Evolved 2 slots: Utility x1, Weapon x1 10456 | -6/Factory | Incoming investigation squad redirected 10523 | -6/Factory | Incoming investigation squad redirected 10648 | -6/Factory | Fabricated Adv. Reaction Control System (x1) 10655 | -6/Factory | Fabricated Adv. Hacking Suite? 10736 | -6/Factory | Identified exit to Lower Caves 10790 | -6/Factory | Incoming investigation squad redirected 11048 | -6/Factory | Lost 4 parts (3n1u) 11297 | -6/Factory | Fabricated Cmb. Gravmag System (x2) 11451 | -6/Factory | Crushed by falling debris 11510 | -6/Factory | Core integrity fell below 50% 11566 | -6/Factory | Lost 4 parts (1n2u1w) 11638 | -6/Factory | Incoming investigation squad redirected 11683 | -6/Factory | System corruption reached 10% 11760 | -6/Factory | Incoming investigation squad redirected 11838 | -6/Factory | Fabricated Cmb. Gravmag System (x2) 11939 | -6/Factory | Discovered new exit (range 14) 12122 | -6/Factory | Crushed by falling debris 12195 | -6/Factory | Incoming investigation squad redirected 12221 | -6/Factory | Crushed by falling debris 12222 | -6/Factory | Core integrity fell below 20% 12252 | -6/Factory | Lost 3 parts (1p2u) 12345 | -6/Factory | Repaired Enh. Autogun 12394 | -6/Factory | Incoming investigation squad redirected 12592 | -6/Factory | Identified exit to Factory 12593 | -6/Factory | Entered another Factory area 12593 | -5/Factory | Evolved 2 slots: Utility x1, Weapon x1 12732 | -5/Factory | Discovered new exit (range 9) 12802 | -5/Factory | Build established: Machinist-Scout 12872 | -5/Factory | Discovered new exit (range 5) 12877 | -5/Factory | Identified exit to Upper Caves 13056 | -5/Factory | Fabricated Adv. Hacking Suite (x1) 13436 | -5/Factory | Repaired Broken Enh. Autogun 13489 | -5/Factory | Repaired Adv. Sensor Array? 13732 | -5/Factory | Repaired Enh. Autogun? 14039 | -5/Factory | Fabricated Mni. Smartbomb Launcher (x1) 14260 | -5/Factory | Cargo convoy interrupted 14468 | -5/Factory | Manually triggered Chute Trap 14468 | -5/Factory | Sucked down chute 14468 | -5/Factory | Entered Waste 14468 | -5/Waste | The area was eerily silent 14542 | -5/Waste | Discovered new exit (range 22) 14570 | -5/Waste | A Compactor rumbled back to life 14570 | -5/Waste | Spotted C-40 Crusher 14580 | -5/Waste | A Compactor rumbled back to life 14580 | -5/Waste | Spotted C-40 Crusher 14611 | -5/Waste | Destroyed C-40 Crusher 14643 | -5/Waste | Identified exit to Factory 14643 | -5/Waste | Entered Factory 14656 | -5/Factory | Identified exit to Extension 14866 | -5/Factory | Build established: Machinist-Mutant 14903 | -5/Factory | Entered Upper Caves 14959 | -5/Upper Caves | Learned Factory machine intel 15148 | -5/Upper Caves | Discovered new exit (range 12) 15161 | -5/Upper Caves | Identified exit to Upper Caves 15162 | -5/Upper Caves | Entered another Upper Caves area 15187 | -5/Upper Caves | Attacked by a delusional Derelict stockpiling Unaware 15204 | -5/Upper Caves | Build established: Machinist-Scout 15241 | -5/Upper Caves | Discovered new exit (range 9) 15605 | -5/Upper Caves | Discovered new exit (range 9) 15613 | -5/Upper Caves | Identified exit to Warlord 15625 | -5/Upper Caves | Entered Warlord 15625 | -5/Warlord | Accompanied by 4 allies 15648 | -5/Warlord | System corruption cleaned by Quarantine Array 15819 | -5/Warlord | Learned location of Quarantine (-3) 15819 | -5/Warlord | Learned Testing trap positions 15819 | -5/Warlord | Learned Research emergency access door positions 15820 | -5/Warlord | Learned 4 Quarantine zone layouts 15820 | -5/Warlord | Learned 4 Command zone layouts 15821 | -5/Warlord | Learned Factory terminal intel 15821 | -5/Warlord | Learned Factory repair station intel 15821 | -5/Warlord | Learned Armory terminal intel 15871 | -5/Warlord | Met Warlord 15885 | -5/Warlord | Opened Warlord's prototype stash 15891 | -5/Warlord | Found Prototype Processor 15891 | -5/Warlord | Identified Exp. Armor Integrity Analyzer 15895 | -5/Warlord | Found Prototype Processor 15895 | -5/Warlord | Identified Exp. Targeting Computer 15896 | -5/Warlord | Warlord's base attacked by MAIN.C 15901 | -5/Warlord | Found Prototype Device 15901 | -5/Warlord | Identified Exp. Focal Shield 15908 | -5/Warlord | Found Prototype Hackware 16036 | -5/Warlord | Found Prototype Energy Cannon 16036 | -5/Warlord | Identified Vortex Driver 16044 | -5/Warlord | Found Vortex Driver 16215 | -5/Warlord | Spotted B-86 Titan 16246 | -5/Warlord | Warlord forces counterattacked 16288 | -5/Warlord | Spotted Striker 16339 | -5/Warlord | Destroyed 8 combat bots 16372 | -5/Warlord | Discovered new exit (range 12) 16378 | -5/Warlord | Identified exit to Proximity Caves 16386 | -5/Warlord | Entered Proximity Caves 16579 | -4/Proximity Caves | Learned Research emergency access door positions 16593 | -4/Proximity Caves | Spotted B-86 Titan 16679 | -4/Proximity Caves | Discovered new exit (range 18) 16688 | -4/Proximity Caves | Identified exit to Factory 16688 | -4/Proximity Caves | Entered Factory 16688 | -4/Factory | Evolved 2 slots: Utility x2 16688 | -4/Factory | Identified System Mapper 16689 | -4/Factory | Identified exit to Research 16689 | -4/Factory | Identified exit to Armory 16690 | -4/Factory | Loaded intel: 262 machine locations 16691 | -4/Factory | Loaded intel: 26 terminal locations 16692 | -4/Factory | Loaded intel: 6 repair station locations 16695 | -4/Factory | Discovered exit to Research (range 11) 16898 | -4/Factory | Self-destructed Last Messages --------------- 16855_ K-01 Serf collects debris. 16857_ Acquired 55 matter. 16859_ K-01 Serf collects debris. 16867_ C-35 Carver suffers critical hit (Destroy). 16867_ C-35 Carver destroyed. 16868_ K-01 Serf collects debris. 16874_ ALERT: Suspicious intruders detected, dispatching Cutter reinforcements to area. 16889_ H-71 Marshal calls for reinforcements. 16889_ ALERT: Hostile activity reported, dispatching reinforcements to area. 16889_ Knocked back. 16889_ Vortex penetrates H-71 Marshal. 16893_ Mic. Fission Core destroyed. 16895_ Penetrated by Slug. 16895_ Enh. Autogun destroyed. 16896_ U-05 Engineer builds a Wall. 16897_ Penetrated by Slug. 16897_ Enh. Autogun destroyed. 16897_ Knocked back. Map ----- +----------------------------------------------------+ | ???????????????????????????????"""?"""?? | | ???????????????????????????????"""?"""?? | | ???????????????????????????????????????? | | ?????????????????????? ????"""?"""?? | | ????????????????????? ??"""?"""?? | | ????????????????????? +?"""?"""?? | | ????????????????????? # ???????? | | ????????????????????? # ????????? | | ?????????????????????# u# ????????? | | ????????????????????## ##????????? | | ????????????????????# #????????? | | ""??????????????????# #????????? | | ""??????############# w #????????? | | ""??????? """" # #????????? | | ""?????# """""" # #????????? | | ???????# ""F "" # H #????????? | | ""?????# """ # #????????? | | ""?????# #? ! ?????????? | | ""?????# #? ??????????? | | ""?????# """ """ #?# #?##???????? | | ???????# """ """ #?# # ????????? | | ???????# """ """ #?# # ???""""??? | | ???????# #?# +????""""??? | | ?###???# ### #????""""??? | | ?# #???# ## #????""""??? | | ##"##############+### % @ #????""""??? | | cc #????""""??? | | %% ?""""??? | | % ! % ????? | | [ = =t! ########???? | | % !! %% #??????????? | | ###"##################; # ######???????? | | ?#= % ????????????# #???????? | | [+%! ???????????# #???????? | | %#[ ??????????# #???????? | | # ?????????# #???????? | | ?# ??####### """" """" #???????? | | ?# ?# # """" """" #???????? | | ?# ## # """" """" #???????? | | ?# ## # """" """" #???????? | | ?############ R """" """" #???????? | | ## ?????????# # """" """" #???????? | | ###### # """" """" ????????? | | < # ?????????? | | ########+##############?????????? | | ## ?????????? ?????????????????????? | | ??????????? ???????????????????? | | ?????????# ] """ """ ?????????????????? | | ?????????# """ """ #????????????????? | | ?????????# """ """ #????????????????? | +----------------------------------------------------+ Best States ------------- Heat Dissipation 43 Energy Generation 18 Energy Capacity 560 Matter Stores 300 Matter Capacity 300 Sight Range 22 Robot Scan Range 16 Terrain Scan Density 10 Cloak Strength 2 Armor Coverage 600 Phase Shifting 5 Evasion (%) 62 Targeting Accuracy 12 Target Analysis 6 Core Analysis 9 Armor Integrity Analysis 50 Recoil Reduction 6 Matter Filtering 30 Kinecelleration 30 Offensive Hacking 44 Defensive Hacking 10 Authchip Count 4 Trap Extractor Capacity 4 Item Schematics ----------------- Hcp. Storage Unit | -10/Materials | Hacked Cmb. Airjet | -9/Materials | Scanalyzed Hacking Suite | -9/Materials | Scanalyzed Datajack | -8/Materials | Scanalyzed Trap Extractor | -8/Materials | Scanalyzed Enh. Autogun | -7/Factory | Scanalyzed Combat Drone Bay | -7/Data Miner | Free Lgt. Regenerative Plating | -7/Data Miner | Free Cld. Cesium-ion Thruster | -7/Data Miner | Free Gravity Neutralizer | -7/Data Miner | Free Imp. Heavy Laser | -7/Data Miner | Free Arm. Medium Treads | -7/Data Miner | Free Imp. Weapon Cycler | -7/Data Miner | Free Imp. Remote Datajack | -7/Data Miner | Free Phase Gun | -7/Data Miner | Free Enh. Gauss Cannon | -7/Data Miner | Free Mni. Smartbomb Launcher | -6/Factory | Hacked Imp. Focal Shield | -6/Factory | Hacked Adv. Hacking Suite | -6/Factory | Hacked Cmb. Gravmag System | -6/Factory | Hacked Exp. Utility Shielding | -6/Factory | Hacked Prc. Rocket Launcher | -6/Factory | Scanalyzed Robot Schematics ------------------ R-10 Processor | -7/Data Miner | Free B-48 Gladiator | -7/Data Miner | Free O-24 Administrator | -7/Data Miner | Free G-47 Trooper | -7/Data Miner | Free B-60 Warrior | -7/Data Miner | Free Fabricated ------------ Adv. Reaction Control System | x1 | -6/Factory | Preloaded Adv. Hacking Suite | x1 | -6/Factory | Authchip Cmb. Gravmag System | x2 | -6/Factory | Authchip Cmb. Gravmag System | x2 | -6/Factory | Authchip Adv. Hacking Suite | x1 | -5/Factory | Authchip Mni. Smartbomb Launcher | x1 | -5/Factory | Authchip Alien Tech Used ----------------- None Achievements -------------- None Challenges ------------ None Game ------ Seed SpectralNeutronShredder Manual? 0 Play Time 02:16:10 Cumulative 391.4 hours Start 2022.05.04 @ 10:28:12 End 2022.05.04 @ 13:30:04 Sessions 3 Manual Loads 0 Difficulty Rogue Special Mode None Game No. 387 Rogue 387 Adventurer 0 Explorer 0 Win Type - Total 20 Types 12/2/3/2/0/0/0/1/0 Lore% 92 Gallery% 89 Achievement% 75 Wizard Run 0 Options --------- ASCII 0 Keyboard 0 Movement Arrows Keybinds 0 Fullscreen 1 Font 18/Smallcaps Map View 76x50 Tactical HUD 1 Map Filters NONE Filters NONE Steam 1 RUN: f06cd650-dc90-4d68-bd66-3aa60161b40c